bitfinex-derivatives/quotes_SOLF0:USTF0_20241215
["timestamp","ask_amount","ask_price","bid_price","bid_amount"]
[1734270512921,2.2752,219.83,219.74,3.26789548]
[1734270513119,2.2752,219.83,219.75,3.26789548]
[1734270513320,2.2752,219.83,219.72,7.53445439]
[1734270513521,1.4337,219.85,219.73,3.26758338]
[1734270513719,2.2751,219.84,219.77,2.2758]
[1734270514219,1.4337,219.85,219.78,2.2757]
[1734270514220,3.7087,219.85,219.78,2.2757]
[1734270514420,1.4337,219.85,219.72,7.53445439]
[1734270514615,1.4337,219.85,219.73,3.26767854]
[1734270514820,1.4337,219.85,219.74,3.26767854]
[1734270515117,1.4337,219.85,219.75,3.26767854]
[1734270515314,1.4337,219.85,219.72,5.41445439]
[1734270515518,3.7087,219.85,219.73,3.26680906]
[1734270515718,3.7087,219.85,219.74,3.26680906]
[1734270515919,3.7087,219.85,219.75,3.26680906]
[1734270516220,1.4337,219.85,219.76,3.26680906]
[1734270516426,1.4337,219.85,219.77,3.26680906]
[1734270516725,3.5537,219.85,219.78,3.26530245]
[1734270516920,2.12,219.85,219.79,3.26484757]
[1734270517122,1.4263,219.87,219.83,2.2752]
[1734270517319,2.12,219.87,219.83,2.2752]
[1734270519826,2.12,219.87,219.84,2.275]
[1734270520228,0.24376,219.94,219.81,2.12]
[1734270520428,0.24376,219.94,219.82,2.12]
[1734270520727,0.24376,219.94,219.83,6.84163481]
[1734270520926,0.24376,219.94,219.88,2.2747]
[1734270522023,0.24376,219.94,219.86,2.2749]
[1734270522320,0.24376,219.94,219.83,3.5778]
[1734270522518,0.24376,219.94,219.84,3.26211855]
[1734270522721,0.24376,219.94,219.83,1.4578]
[1734270522924,0.24376,219.94,219.8,2.12]
[1734270523119,0.24376,219.94,219.81,3.26327256]
[1734270523323,0.24376,219.94,219.8,2.12]
[1734270523731,0.24376,219.94,219.78,2.12]
[1734270524123,2.2747,219.89,219.82,2.2753]
[1734270524327,2.12,219.88,219.82,2.2753]
[1734270525133,2.12,219.88,219.78,2.12]
[1734270525330,2.12,219.88,219.83,2.2752]
[1734270526123,2.12,219.88,219.78,2.12]
[1734270527132,2.12,219.88,219.81,2.2754]
[1734270527333,2.12,219.88,219.78,2.12]
[1734270527825,0.24376,219.94,219.78,2.12]
[1734270528137,0.24376,219.94,219.79,3.26160254]
[1734270528434,4.63786,219.94,219.84,2.2751]
[1734270528626,4.63786,219.94,219.83,2.12]
[1734270529831,2.2744,219.91,219.84,2.2751]
[1734270530129,2.36376,219.94,219.83,2.12]
[1734270530331,2.12,219.93,219.83,2.12]
[1734270530630,4.3943,219.93,219.86,2.2749]
[1734270531633,2.2743,219.93,219.86,2.2749]
[1734270531836,2.12,219.92,219.86,2.2749]
[1734270533531,2.2745,219.9,219.84,2.275]
[1734270533829,2.12,219.92,219.8,2.12]
[1734270534031,2.12,219.92,219.81,3.26322462]
[1734270534235,2.12,219.92,219.8,2.12]
[1734270534432,2.12,219.92,219.81,3.26322028]
[1734270534629,2.12,219.92,219.8,2.12]
[1734270535635,2.2746,219.89,219.83,2.2752]
[1734270536130,2.12,219.92,219.83,2.2752]
[1734270536131,2.2745,219.91,219.83,2.2752]
[1734270536638,2.12,219.92,219.79,2.8576]
[1734270536831,2.12,219.92,219.8,3.26141386]
[1734270537033,2.12,219.92,219.81,3.26141386]
[1734270537233,4.3943,219.92,219.85,2.275]
[1734270537833,4.3943,219.92,219.86,2.2749]
[1734270538030,1.5057,220.03,219.79,2.8576]
[1734270538031,2.2741,219.94,219.79,2.8576]
[1734270538229,2.12,219.93,219.83,2.2751]
[1734270538435,2.12,219.92,219.84,4.6742052]
[1734270538634,2.12,219.93,219.84,1.4132]
[1734270539532,2.12,219.93,219.88,2.2746]
[1734270543442,2.12,219.93,219.89,2.2745]
[1734270543835,2.12,219.93,219.84,1.4132]
[1734270544036,2.807,219.98,219.91,2.2743]
[1734270544239,5.0807,219.98,219.84,1.4132]
[1734270544438,2.12,219.97,219.85,3.25675504]
[1734270544648,2.12,219.97,219.86,3.25675504]
[1734270544840,2.12,219.97,219.91,2.2743]
[1734270545343,4.3936,220.0,219.88,2.12]
[1734270545544,4.3936,220.0,219.89,5.3750852]
[1734270545746,4.3936,220.0,219.89,2.12]
[1734270545941,4.3936,220.0,219.92,2.2743]
[1734270546143,4.3936,220.0,219.89,2.12]
[1734270546840,2.2736,219.99,219.93,2.2742]
[1734270548342,2.2737,219.98,219.88,2.2747]
[1734270548641,2.2737,219.98,219.89,2.12]
[1734270549036,2.2737,219.98,219.92,2.2743]
[1734270549442,2.12,220.0,219.86,2.12]
[1734270549644,3.0254,219.99,219.87,2.2747]
[1734270549840,3.0254,219.99,219.84,6.96533595]
[1734270550452,3.0254,219.99,219.88,2.2747]
[1734270550649,2.2739,219.96,219.88,2.2747]
[1734270550858,2.12,219.95,219.88,2.2747]
[1734270551058,2.12,219.94,219.88,2.2747]
[1734270551254,2.12,219.93,219.89,2.2746]
[1734270551456,2.12,219.93,219.84,6.96533595]
[1734270552158,2.12,219.93,219.9,2.2745]
[1734270553361,2.12,219.97,219.92,2.2743]
[1734270554157,2.12,219.97,219.91,2.2744]
[1734270555161,0.37036,220.04,219.88,2.12]
[1734270555456,0.37036,220.04,219.89,6.26010726]
[1734270555662,0.37036,220.04,220.0,2.2734]
[1734270556162,0.37036,220.04,220.01,2.2733]
[1734270556359,0.37036,220.04,219.96,1.5106]
[1734270556856,0.37036,220.04,220.02,2.2732]
[1734270557361,0.37036,220.04,220.0,2.12]
[1734270557552,0.37036,220.04,220.03,2.2732]
[1734270558965,2.2722,220.13,220.0,2.12]
[1734270558966,4.3922,220.13,220.0,2.12]
[1734270559153,2.12,220.13,220.0,2.12]
[1734270559662,2.12,220.13,220.07,2.2727]
[1734270559868,4.392,220.15,220.07,2.2727]
[1734270561166,2.2716,220.18,220.06,2.12]
[1734270561363,2.2716,220.18,220.07,2.12]
[1734270562463,2.2716,220.18,220.09,2.2725]
[1734270563457,2.2716,220.18,220.1,2.2724]
[1734270564465,2.2704,220.3,220.17,2.2717]
[1734270564670,2.2704,220.3,220.03,5.54512625]
[1734270564671,2.12,220.29,220.15,2.12]
[1734270564862,2.12,220.28,220.1,2.12]
[1734270565068,2.2715,220.2,220.12,2.2722]
[1734270566766,2.2715,220.2,220.1,2.12]
[1734270568472,2.2715,220.2,220.11,2.2723]
[1734270568673,2.2715,220.19,220.11,2.2723]
[1734270568977,2.2715,220.19,220.1,2.12]
[1734270568978,2.12,220.28,220.1,2.12]
[1734270569171,2.12,220.28,220.11,3.0771]
[1734270570573,2.2707,220.27,220.18,2.2716]
[1734270571181,2.12,220.28,220.17,2.12]
[1734270571679,2.12,220.28,220.16,2.2717]
[1734270571880,2.2711,220.23,220.16,2.12]
[1734270572471,5.44909166,220.3,220.22,2.2712]
[1734270572472,2.2704,220.3,220.22,2.2712]
[1734270573472,2.2704,220.3,220.19,2.12]
[1734270573674,2.2704,220.3,220.23,2.2711]
[1734270574379,4.3903,220.31,220.24,2.2709]
[1734270574980,2.2703,220.31,220.24,2.2709]
[1734270575279,2.2703,220.31,220.23,2.2711]
[1734270575481,2.2703,220.31,220.21,2.12]
[1734270576082,2.47989,220.32,220.24,2.271]
[1734270576387,2.47989,220.32,220.21,2.12]
[1734270577082,2.47989,220.32,220.26,2.2708]
[1734270579184,4.75009,220.32,220.26,2.2708]
[1734270580083,2.47989,220.32,220.27,2.2706]
[1734270580779,0.35989,220.32,220.27,2.2706]
[1734270581387,0.35989,220.32,220.21,2.12]
[1734270581585,0.35989,220.32,220.22,1.5208]
[1734270582884,0.35989,220.32,220.27,2.2706]
[1734270586789,0.35989,220.32,220.28,2.2706]
[1734270588786,0.35989,220.32,220.26,2.12]
[1734270589296,0.35989,220.32,220.27,2.2706]
[1734270589591,0.35989,220.32,220.26,2.12]
[1734270589795,0.35989,220.32,220.24,5.53706185]
[1734270590100,2.2706,220.29,220.24,5.53706185]
[1734270591901,2.2707,220.28,220.13,1.5086]
[1734270592203,2.12,220.3,220.14,2.12]
[1734270592605,2.12,220.3,220.13,1.5086]
[1734270592802,2.12,220.3,220.14,2.12]
[1734270593303,2.271,220.25,220.17,2.2717]
[1734270593607,2.12,220.3,220.17,2.2717]
[1734270594802,2.271,220.25,220.18,2.2716]
[1734270595001,2.12,220.25,220.13,1.5086]
[1734270595201,2.2711,220.23,220.15,2.2718]
[1734270595604,2.2711,220.23,220.14,2.12]
[1734270596599,2.2711,220.23,220.16,2.2718]
[1734270597801,2.2712,220.22,220.15,2.2719]
[1734270599706,2.9039,220.24,220.13,1.5086]
[1734270599908,2.2713,220.21,220.14,2.272]
[1734270600906,2.2712,220.23,220.15,2.2719]
[1734270601211,2.9039,220.24,220.15,2.2719]
[1734270601411,5.175,220.24,220.12,7.45510306]
[1734270601707,5.175,220.24,220.13,3.22887051]
[1734270602006,5.175,220.24,220.17,2.2717]
[1734270604517,2.2711,220.24,220.17,2.2717]
[1734270604913,4.3909,220.25,220.18,2.2716]
[1734270605414,2.12,220.25,220.09,1.4418]
[1734270605614,1.5542,220.24,220.09,1.4418]
[1734270606016,2.2718,220.17,220.06,5.1152]
[1734270606320,2.12,220.17,220.07,3.23774985]
[1734270606614,2.12,220.17,220.08,3.23774985]
[1734270606816,2.12,220.17,220.09,3.23774985]
[1734270607014,2.12,220.17,220.06,5.1152]
[1734270607215,2.12,220.17,220.07,3.2388815]
[1734270607411,2.12,220.17,220.11,2.2723]
[1734270607412,4.3917,220.17,220.11,2.2723]
[1734270608615,2.12,220.17,220.13,2.2721]
[1734270608918,2.12,220.17,220.1,5.47537416]
[1734270610413,2.12,220.17,220.13,2.2721]
[1734270610621,1.4052,220.22,220.1,5.47537416]
[1734270610816,3.5252,220.22,220.11,5.36104604]
[1734270611019,3.5252,220.22,220.12,3.24104604]
[1734270611313,2.2713,220.21,220.11,2.12]
[1734270611714,3.5252,220.22,220.14,2.272]
[1734270611916,2.2716,220.19,220.1,5.47537416]
[1734270612613,190.6560486,220.41,220.11,3.24126553]
[1734270612816,2.12,220.31,220.16,2.2717]
[1734270613010,4.3903,220.31,220.17,6.89658578]
[1734270613217,4.3903,220.31,220.18,2.12]
[1734270613414,4.3903,220.31,220.21,2.2712]
[1734270613617,4.3903,220.31,220.18,2.12]
[1734270614018,2.12,220.31,220.18,2.12]
[1734270614417,2.9523,220.33,220.27,2.2707]
[1734270614611,5.0723,220.33,220.27,2.2707]
[1734270614816,7.3424,220.33,220.18,5.0818]
[1734270615017,7.3424,220.33,220.19,3.23786402]
[1734270615219,7.3424,220.33,220.25,2.2709]
[1734270615519,7.3424,220.33,220.18,5.0818]
[1734270615819,7.3424,220.33,220.19,3.23767843]
[1734270616021,7.3424,220.33,220.2,3.23767843]
[1734270616214,7.3424,220.33,220.18,5.0818]
[1734270616416,7.3424,220.33,220.19,3.23765556]
[1734270616719,7.3424,220.33,220.2,3.23765556]
[1734270616921,5.0723,220.33,220.18,5.0818]
[1734270617113,5.0723,220.33,220.19,3.23766371]
[1734270617317,5.0723,220.33,220.2,3.23766371]
[1734270617517,2.27,220.34,220.24,2.2709]
[1734270617716,2.12,220.34,220.23,2.12]
[1734270618116,2.12,220.34,220.28,2.2706]
[1734270619622,2.12,220.34,220.29,2.2705]
[1734270620414,2.12,220.34,220.3,2.2703]
[1734270621023,2.2699,220.35,220.3,2.2703]
[1734270621322,2.12,220.34,220.3,2.2703]
[1734270622221,4.39,220.34,220.28,2.2705]
[1734270622421,4.39,220.34,220.23,7.684583]
[1734270623425,4.39,220.34,220.29,2.2705]
[1734270624521,4.39,220.34,220.27,2.2706]
[1734270624718,2.12,220.34,220.23,7.684583]
[1734270625017,2.12,220.34,220.3,2.2704]
[1734270625222,2.12,220.34,220.23,7.684583]
[1734270626323,2.2696,220.38,220.32,2.2702]
[1734270626526,2.12,220.38,220.23,7.684583]
[1734270626823,2.12,220.38,220.24,3.23241205]
[1734270627026,2.12,220.38,220.33,2.27]
[1734270630533,2.12,220.38,220.34,2.27]
[1734270630725,3.6783,220.39,220.34,2.27]
[1734270631029,2.12,220.41,220.37,2.2697]
[1734270631527,2.12,220.41,220.28,2.12]
[1734270631724,4.3893,220.41,220.31,2.2702]
[1734270631925,4.3893,220.41,220.28,2.12]
[1734270632321,2.12,220.41,220.36,2.2698]
[1734270633029,2.2691,220.42,220.36,2.2698]
[1734270633228,2.12,220.41,220.36,2.2698]
[1734270634330,4.3893,220.41,220.36,2.2698]
[1734270635232,2.12,220.41,220.29,1.4883]
[1734270635435,2.12,220.41,220.34,2.2699]
[1734270635730,2.12,220.41,220.29,1.4883]
[1734270636033,2.12,220.41,220.31,2.2702]
[1734270636834,2.2699,220.35,220.3,2.2703]
[1734270638730,2.2699,220.35,220.29,2.2705]
[1734270640438,2.12,220.36,220.31,2.2702]
[1734270642135,2.12,220.36,220.26,2.12]
[1734270642336,1.5263,220.45,220.26,2.12]
[1734270642537,2.12,220.42,220.26,2.12]
[1734270642738,2.2694,220.4,220.26,2.12]
[1734270643439,2.12,220.42,220.29,5.50440331]
[1734270644341,2.2696,220.38,220.32,2.2701]
[1734270644537,2.12,220.37,220.32,2.2701]
[1734270644736,2.12,220.37,220.29,5.50440331]
[1734270645131,2.12,220.37,220.34,2.27]
[1734270645634,2.12,220.37,220.29,5.50440331]
[1734270645940,4.3896,220.38,220.32,2.2701]
[1734270646142,4.3896,220.38,220.29,5.50440331]
[1734270647131,2.12,220.38,220.29,5.50440331]
[1734270648032,4.3892,220.41,220.32,2.2701]
[1734270648231,4.3892,220.41,220.29,5.50440331]
[1734270649337,2.2694,220.4,220.29,5.50440331]
[1734270650639,2.2694,220.4,220.34,2.2699]
[1734270651541,2.12,220.41,220.29,5.50440331]
[1734270652238,2.12,220.41,220.3,2.2703]
[1734270652836,2.12,220.41,220.29,5.50440331]
[1734270653043,2.2698,220.36,220.31,2.2703]
[1734270653344,4.3898,220.36,220.31,2.2703]
[1734270654845,4.3898,220.36,220.29,5.50440331]
[1734270655747,4.3898,220.36,220.25,2.12]
[1734270656342,4.3898,220.36,220.3,2.2704]
[1734270657741,3.0202,220.43,220.3,5.41723209]
[1734270657944,5.1402,220.43,220.3,7.53723209]
[1734270658149,5.1402,220.43,220.31,3.24117136]
[1734270658349,5.1402,220.43,220.35,2.2698]
[1734270660041,2.2692,220.42,220.36,2.2698]
[1734270661446,2.2693,220.41,220.36,2.2698]
[1734270661641,5.1402,220.43,220.3,5.41723209]
[1734270662550,5.1402,220.43,220.32,2.2701]
[1734270662856,5.1402,220.43,220.3,5.41723209]
[1734270663448,5.1402,220.43,220.24,35.68266705]
[1734270663654,5.1402,220.43,220.25,3.2461783]
[1734270663852,5.1402,220.43,220.3,2.2704]
[1734270663853,2.2699,220.35,220.3,2.2704]
[1734270664054,2.12,220.34,220.3,2.2704]
[1734270665352,4.39,220.34,220.28,2.2705]
[1734270665553,4.39,220.34,220.24,33.56266705]
[1734270665751,4.39,220.34,220.25,3.24749199]
[1734270665954,4.39,220.34,220.26,3.24749199]
[1734270666152,4.39,220.34,220.24,33.56266705]
[1734270666348,2.12,220.34,220.15,2.12]
[1734270666557,2.9108,220.33,220.16,3.24989747]
[1734270666851,2.2707,220.28,220.2,2.2713]
[1734270667053,2.12,220.27,220.15,1.4877]
[1734270667256,2.12,220.27,220.16,3.24993853]
[1734270667556,2.12,220.27,220.2,5.46540053]
[1734270667860,2.12,220.27,220.21,2.2713]
[1734270668056,2.12,220.27,220.15,1.4877]
[1734270668251,2.12,220.27,220.16,3.24890403]
[1734270668450,2.12,220.27,220.15,1.4877]
[1734270668652,2.12,220.27,220.16,3.24846273]
[1734270668851,2.12,220.27,220.15,1.4877]
[1734270669047,2.12,220.27,220.15,3.7596]
[1734270669252,2.12,220.27,220.15,1.4877]
[1734270669959,2.271,220.25,220.15,1.4877]
[1734270671365,2.271,220.25,220.16,2.2717]
[1734270671759,2.271,220.25,220.15,1.4877]
[1734270671968,2.12,220.27,220.15,3.7595]
[1734270672163,2.12,220.27,220.14,5.355887]
[1734270672358,2.12,220.27,220.09,2.9053]
[1734270672661,2.2715,220.19,220.1,3.24215108]
[1734270672968,2.12,220.18,220.12,2.2722]
[1734270673168,2.2714,220.2,220.12,2.2722]
[1734270673169,2.12,220.17,220.12,2.2722]
[1734270673470,5.32498238,220.28,220.12,2.2722]
[1734270673471,2.12,220.16,220.12,2.2722]
[1734270674369,2.12,220.16,220.13,2.2721]
[1734270674575,2.12,220.16,220.11,5.36043499]
[1734270675164,5.32498238,220.28,220.11,5.36043499]
[1734270675165,2.12,220.18,220.11,5.36043499]
[1734270675573,2.12,220.18,220.15,2.2719]
[1734270675772,2.12,220.18,220.11,5.36043499]
[1734270676161,2.12,220.18,220.14,2.272]
[1734270676467,2.12,220.18,220.11,5.36043499]
[1734270676765,2.12,220.18,220.12,2.2721]
[1734270677168,2.12,220.18,220.11,5.36043499]
[1734270678471,2.12,220.18,220.13,2.2721]
[1734270678666,5.32498238,220.28,220.13,2.2721]
[1734270678876,2.2713,220.22,220.11,5.36043499]
[1734270679068,2.12,220.21,220.11,5.36043499]
[1734270679266,5.32498238,220.28,220.11,5.36043499]
[1734270679472,2.271,220.25,220.12,1.4473]
[1734270679668,2.12,220.24,220.12,1.4473]
[1734270679972,2.12,220.23,220.12,1.4473]
[1734270680172,2.12,220.22,220.12,1.4473]
[1734270680470,2.12,220.21,220.12,1.4473]
[1734270681068,2.12,220.21,220.18,2.2716]
[1734270681269,2.12,220.21,220.12,1.4473]
[1734270681466,2.12,220.21,220.13,2.12]
[1734270682872,2.12,220.21,220.19,2.2715]
[1734270683473,4.4508,220.33,220.13,2.12]
[1734270683673,2.2707,220.28,220.21,2.2713]
[1734270683873,4.4508,220.33,220.21,2.2713]
[1734270683874,2.12,220.27,220.21,2.2713]
[1734270684077,2.12,220.26,220.21,2.2713]
[1734270684271,2.12,220.25,220.21,2.2713]
[1734270684576,2.12,220.24,220.21,2.2713]
[1734270684774,2.12,220.24,220.13,2.12]
[1734270685079,2.12,220.24,220.2,2.2714]
[1734270685575,2.12,220.24,220.18,2.2715]
[1734270687575,2.2712,220.23,220.16,2.2718]
[1734270687877,3.6507,220.24,220.12,1.4473]
[1734270688475,2.2712,220.23,220.15,2.2719]
[1734270688777,3.6507,220.24,220.12,1.4473]
[1734270689676,3.6507,220.24,220.11,5.36043499]
[1734270689879,1.4171,220.23,220.11,5.36043499]
[1734270690570,1.4171,220.23,220.01,4.5]
[1734270690775,2.9433,220.23,220.02,5.35000184]
[1734270691076,2.2717,220.17,220.11,2.2723]
[1734270691278,2.12,220.16,220.11,2.2723]
[1734270692282,2.12,220.16,220.03,3.22898165]
[1734270692579,2.12,220.16,220.1,5.39523184]
[1734270692772,2.12,220.18,220.1,5.39523184]
[1734270693179,2.12,220.18,220.12,2.2722]
[1734270693380,2.12,220.18,220.1,5.39523184]
[1734270693780,2.12,220.18,220.14,2.272]
[1734270694181,2.12,220.18,220.1,5.39523184]
[1734270694783,2.12,220.21,220.1,5.39523184]
[1734270694984,2.12,220.21,220.18,2.2716]
[1734270695881,1.5307,220.24,220.11,3.22732886]
[1734270695882,2.12,220.22,220.11,3.22732886]
[1734270696087,2.12,220.22,220.12,2.12]
[1734270696575,2.12,220.23,220.12,2.12]
[1734270697582,2.12,220.23,220.19,2.2714]
[1734270698581,2.12,220.24,220.18,2.2716]
[1734270698884,2.12,220.23,220.12,2.12]
[1734270699088,2.12,220.22,220.12,2.12]
[1734270699281,2.12,220.22,220.19,2.2715]
[1734270700285,2.12,220.22,220.18,2.2716]
[1734270700483,2.12,220.22,220.12,2.12]
[1734270701485,2.12,220.22,220.2,2.2714]
[1734270701887,2.12,220.25,220.2,2.2714]
[1734270702888,2.12,220.25,220.21,2.2713]
[1734270704089,2.12,220.25,220.2,2.2714]
[1734270704291,4.3909,220.25,220.12,2.12]
[1734270704592,4.3909,220.25,220.13,3.23692937]
[1734270704788,4.3909,220.25,220.12,2.12]
[1734270704992,2.271,220.24,220.13,3.2370587]
[1734270705192,2.271,220.24,220.11,2.12]
[1734270705391,2.271,220.24,220.12,3.23720516]
[1734270705592,2.271,220.24,220.17,2.2716]
[1734270706289,2.2711,220.23,220.17,2.2716]
[1734270706690,2.12,220.25,220.14,2.272]
[1734270706892,2.2714,220.21,220.14,2.272]
[1734270707096,2.12,220.2,220.14,2.272]
[1734270707284,2.12,220.19,220.12,2.2721]
[1734270707490,2.12,220.18,220.12,2.2721]
[1734270707789,2.12,220.18,220.1,5.39523184]
[1734270707993,2.12,220.18,220.11,2.2722]
[1734270708193,4.3917,220.18,220.11,2.2722]
[1734270708693,4.3917,220.18,220.1,5.39523184]
[1734270708993,4.3917,220.18,220.12,2.2722]
[1734270709489,2.12,220.18,220.13,2.2721]
[1734270710291,4.3916,220.18,220.12,2.2722]
[1734270713894,2.12,220.18,220.09,5.43331507]
[1734270714198,2.12,220.18,220.11,2.2723]
[1734270714991,2.2717,220.17,220.12,2.2722]
[1734270716293,2.2717,220.17,220.11,2.2723]
[1734270716991,2.2717,220.17,220.12,2.2722]
[1734270717195,2.12,220.18,220.09,5.43331507]
[1734270717196,4.3916,220.18,220.09,5.43331507]
[1734270718095,4.3916,220.18,220.12,2.2721]
[1734270718293,4.3916,220.18,220.09,5.43331507]
[1734270718694,2.12,220.17,220.09,5.43331507]
[1734270719198,2.12,220.17,220.12,2.2722]
[1734270720994,2.12,220.17,220.09,5.43331507]
[1734270721190,2.12,220.18,220.1,3.25087312]
[1734270721397,2.12,220.18,220.11,3.24972677]
[1734270721594,2.12,220.18,220.16,2.2718]
[1734270721801,2.12,220.18,220.09,5.43331507]
[1734270721999,2.8677,220.17,220.09,5.43331507]
[1734270722598,2.8677,220.17,219.97,7.62621546]
[1734270722792,1.5437,220.16,219.98,3.1990536]
[1734270722994,1.5437,220.16,219.99,3.1990536]
[1734270723199,2.2727,220.08,220.01,2.2733]
[1734270723399,2.2727,220.08,220.0,3.1990536]
[1734270723400,2.12,220.07,219.97,1.4664]
[1734270723703,2.12,220.06,220.01,2.2734]
[1734270724301,4.3929,220.06,219.99,2.2735]
[1734270724803,2.2732,220.03,219.84,2.12]
[1734270725001,2.2732,220.03,219.86,2.928]
[1734270725504,2.2732,220.03,219.87,3.19792151]
[1734270725703,2.2732,220.03,219.88,3.19792151]
[1734270725903,2.9516,220.05,219.95,5.53710824]
[1734270726094,2.12,220.02,219.95,5.53710824]
[1734270727096,2.12,220.02,219.99,2.2736]
[1734270727300,2.9516,220.05,219.95,5.53710824]
[1734270727503,5.42804233,220.1,219.95,5.53710824]
[1734270727698,2.12,220.09,219.96,4.61291105]
[1734270727902,4.3926,220.09,219.96,1.4216]
[1734270728502,4.3926,220.09,220.01,2.2734]
[1734270729603,2.2726,220.08,220.01,2.2734]
[1734270729901,2.12,220.09,219.98,2.2736]
[1734270730506,2.12,220.09,219.96,1.4216]
[1734270731401,2.273,220.05,219.98,2.2737]
[1734270731608,2.12,220.04,219.98,2.2737]
[1734270732308,2.12,220.04,219.99,2.2736]
[1734270732610,4.3931,220.04,219.89,2.12]
[1734270732816,4.3931,220.04,219.97,2.2737]
[1734270733314,2.12,220.04,219.97,2.2737]
[1734270734509,2.12,220.04,219.9,1.4885]
[1734270734817,2.12,220.04,219.98,2.2737]
[1734270735108,2.12,220.04,219.92,2.2742]
[1734270735314,4.4792,220.03,219.9,5.45647955]
[1734270735609,2.2739,219.96,219.86,2.928]
[1734270735812,2.12,219.95,219.86,2.928]
[1734270737005,2.12,219.95,219.89,2.2745]
[1734270737210,2.12,219.94,219.86,2.928]
[1734270737406,2.12,219.93,219.88,5.40603744]
[1734270738513,2.12,219.93,219.9,2.2745]
[1734270738814,2.12,219.93,219.88,5.40603744]
[1734270739005,2.12,219.95,219.92,2.2742]
[1734270739206,2.12,219.95,219.88,5.40603744]
[1734270739716,2.12,219.97,219.88,5.40603744]
[1734270740110,2.12,219.97,219.93,2.2741]
[1734270741215,2.12,219.97,219.88,5.40603744]
[1734270741513,2.9232,220.03,219.88,5.40603744]
[1734270741705,2.12,220.02,219.97,2.2738]
[1734270743117,2.12,220.02,219.99,2.2735]
[1734270743417,2.12,220.01,219.99,2.2735]
[1734270745021,2.12,220.01,220.0,2.2735]
[1734270747319,2.9682,220.09,219.93,2.12]
[1734270747522,2.12,220.08,219.93,2.12]
[1734270747819,2.12,220.07,219.93,2.12]
[1734270748023,2.12,220.07,220.02,2.2732]
[1734270748821,2.12,220.07,219.93,2.12]
[1734270749024,2.12,220.07,220.03,2.2732]
[1734270749520,2.12,220.07,219.93,2.12]
[1734270749521,2.12,220.07,220.01,2.2733]
[1734270749719,2.12,220.07,219.93,2.12]
[1734270750121,2.12,220.06,220.02,2.2732]
[1734270751023,2.12,220.06,220.03,2.2731]
[1734270751922,2.12,220.06,220.04,2.273]
[1734270752220,2.12,220.08,220.0,5.58077198]
[1734270752419,8.57880184,220.16,220.0,5.58077198]
[1734270752618,2.2721,220.14,220.0,5.58077198]
[1734270752921,2.12,220.13,220.0,5.58077198]
[1734270753126,2.12,220.13,220.07,2.2727]
[1734270753822,2.12,220.13,220.0,5.58077198]
[1734270754727,3.7715,220.16,220.09,2.2725]
[1734270754919,2.12,220.15,220.09,2.2725]
[1734270757435,2.12,220.15,220.0,5.58077198]
[1734270757933,1.4996,220.16,220.0,5.58077198]
[1734270758133,2.12,220.15,220.0,5.58077198]
[1734270758528,2.12,220.14,219.99,2.12]
[1734270759126,2.12,220.14,220.1,2.2724]